fUST/lending_fUST_20250723
["ID","MTS","AMOUNT","RATE_DAILY","PERIOD"]
[374276337,1753263051106,-151.0,0.000245,7]
[374276339,1753263051115,-151.0,0.000245,7]
[374276341,1753263051124,-151.0,0.000245,7]
[374276343,1753263051134,-151.0,0.000245,7]
[374276345,1753263051143,-442.649344,0.000245,7]
[374276347,1753263051152,-442.649344,0.000245,7]
[374276349,1753263051160,-442.649344,0.000245,7]
[374276351,1753263051170,-442.649344,0.000245,7]
[374276353,1753263051179,-165.955037,0.000245,7]
[374276355,1753263051188,-151.0,0.000245,7]
[374276356,1753263051197,-152.259446,0.000245,7]
[374276358,1753263051206,-165.955037,0.000245,7]
[374276360,1753263051215,-157.380487,0.000245,7]
[374276362,1753263051225,-157.380487,0.000245,7]
[374276364,1753263051234,-157.380487,0.000245,7]
[374276366,1753263051243,-157.380487,0.000245,7]
[374276368,1753263051252,-151.0,0.000245,7]
[374276370,1753263051262,-151.0,0.000245,7]
[374276372,1753263051271,-151.0,0.000245,7]
[374276374,1753263051280,-544.329649,0.000245,7]
[374276376,1753263051289,-544.329649,0.000245,7]
[374276378,1753263051299,-544.329649,0.000245,7]
[374276380,1753263051308,-544.329649,0.000245,7]
[374276382,1753263051318,-151.0,0.000245,7]
[374276384,1753263051327,-151.0,0.000245,7]
[374276386,1753263051337,-151.0,0.000245,7]
[374276388,1753263051346,-151.0,0.000245,7]
[374276390,1753263051355,-151.0,0.000245,7]
[374276392,1753263051365,-151.0,0.000245,7]
[374276394,1753263051374,-151.0,0.000245,7]
[374276396,1753263051383,-151.0,0.000245,7]
[374276398,1753263051392,-1000.0,0.000245,5]
[374276400,1753263051401,-151.0,0.000245,7]
[374276402,1753263051410,-151.0,0.000245,7]
[374276404,1753263051424,-151.505132,0.000245,7]
[374276406,1753263051434,-151.0,0.000245,7]
[374276408,1753263051443,-151.0,0.000245,7]
[374276410,1753263051452,-151.0,0.000245,7]
[374276412,1753263051461,-218.600615,0.000245,7]
[374276414,1753263051470,-151.0,0.000245,7]
[374276416,1753263051479,-151.0,0.000245,7]
[374276418,1753263051488,-151.0,0.000245,7]
[374276421,1753263051512,-210.971553,0.000245,7]
[374276423,1753263051522,-5878.34546,0.000245,7]
[374276425,1753263051532,-5878.34546,0.000245,7]
[374276427,1753263051543,-151.0,0.000245,7]
[374276429,1753263051552,-151.0,0.000245,7]
[374276431,1753263051562,-151.0,0.000245,7]
[374276433,1753263051571,-151.0,0.000245,7]
[374276435,1753263051580,-151.0,0.000245,7]
[374276437,1753263051590,-5878.34546,0.000245,7]
[374276439,1753263051599,-5878.34546,0.000245,7]
[374276441,1753263051609,-1090.423843,0.000245,7]
[374276443,1753263051623,-1090.423843,0.000245,7]
[374276445,1753263051632,-1090.423843,0.000245,7]
[374276447,1753263051642,-151.0,0.000245,7]
[374276449,1753263051651,-1090.423843,0.000245,7]
[374276451,1753263051661,-151.0,0.000245,7]
[374276453,1753263051671,-151.0,0.000245,7]
[374276456,1753263051680,-501.166439,0.000245,7]
[374276458,1753263051690,-501.166439,0.000245,7]
[374276460,1753263051701,-501.166439,0.000245,7]
[374276462,1753263051711,-501.166439,0.000245,7]
[374276464,1753263051720,-350.117315,0.000245,7]
[374276466,1753263051729,-350.117315,0.000245,7]
[374276468,1753263051738,-350.117315,0.000245,7]
[374276470,1753263051748,-350.117315,0.000245,7]
[374276472,1753263051757,-350.117315,0.000245,7]
[374276474,1753263051766,-350.117315,0.000245,7]
[374276476,1753263051776,-151.0,0.000245,7]
[374276478,1753263051784,-151.0,0.000245,7]
[374276480,1753263051795,-151.0,0.000245,7]
[374276482,1753263051804,-151.0,0.000245,7]
[374276484,1753263051813,-150.0,0.000245,10]
[374276486,1753263051823,-2508.453282,0.000245,7]
[374276488,1753263051833,-2508.453282,0.000245,7]
[374276490,1753263051842,-2508.453282,0.000245,7]
[374276492,1753263051852,-2508.453282,0.000245,7]
[374276494,1753263051862,-151.0,0.000245,7]
[374276496,1753263051871,-151.0,0.000245,7]
[374276498,1753263051880,-957.765318,0.000245,7]
[374276500,1753263051890,-957.765318,0.000245,7]
[374276502,1753263051899,-957.765318,0.000245,7]
[374276504,1753263051909,-151.0,0.000245,7]
[374276506,1753263051918,-957.765318,0.000245,7]
[374276508,1753263051927,-151.0,0.000245,7]
[374276510,1753263051936,-151.0,0.000245,7]
[374276512,1753263051945,-151.0,0.000245,7]
[374276514,1753263051956,-54517.79867016,0.000245,4]
[374276516,1753263051966,-750.72888627,0.000245,3]
[374276518,1753263051976,-151.0,0.000245,7]
[374276520,1753263051986,-151.0,0.000245,7]
[374276522,1753263051996,-197.472902,0.000245,7]
[374276524,1753263052005,-642.0,0.000245,2]
[374276526,1753263052015,-217.916648,0.000245,7]
[374276528,1753263052024,-217.916648,0.000245,7]
[374276530,1753263052034,-217.916648,0.000245,7]
[374276532,1753263052044,-217.916648,0.000245,7]
[374276534,1753263052054,-151.0,0.000245,7]
[374276536,1753263052064,-151.0,0.000245,7]
[374276538,1753263052074,-151.0,0.000245,7]
[374276540,1753263052083,-151.0,0.000245,7]
[374276542,1753263052093,-860.0,0.00024501,2]
[374276544,1753263052102,-565.76473166,0.00024548,2]
[374276546,1753263052113,-3595.77637381,0.00024558,2]
[374276548,1753263052123,-525.27,0.00024578,2]
[374276550,1753263052133,-150.018575,0.00024588,7]
[374276552,1753263052142,-19919.27,0.000246,2]
[374276554,1753263052152,-168.0,0.00024616,2]
[374276556,1753263052162,-3595.77637381,0.00024637,2]
[374276558,1753263052171,-200.0,0.0002464,11]
[374276560,1753263052180,-565.76473166,0.00024648,2]
[374276562,1753263052189,-1329.22,0.00024654,2]
[374276564,1753263052199,-766.09,0.00024654,2]
[374276566,1753263052208,-1845.39,0.00024657,2]
[374276568,1753263052218,-620.0,0.00024657,2]
[374276570,1753263052227,-675.93,0.00024657,2]
[374276572,1753263052237,-1524.84,0.00024657,2]
[374276574,1753263052247,-797.63,0.00024657,2]
[374276576,1753263052257,-1493.61,0.00024657,2]
[374276578,1753263052270,-918.54,0.00024657,2]
[374276580,1753263052286,-1445.62,0.00024657,2]
[374276582,1753263052295,-464.88,0.00024657,2]
[374276584,1753263052305,-332.01,0.00024657,2]
[374276586,1753263052314,-1423.3,0.00024657,2]
[374276587,1753263052323,-460.0,0.00024657,2]
[374276588,1753263052334,-2006.55,0.00024657,2]
[374276589,1753263052343,-1267.73,0.00024657,2]
[374276590,1753263052352,-1053.0,0.00024657,2]
[374276591,1753263052362,-380.0,0.00024658,2]
[374276593,1753263052371,-236.7673449,0.00024658,2]
[374276595,1753263052380,-153.0,0.00024658,2]
[374276597,1753263052390,-153.0,0.00024658,2]
[374276599,1753263052399,-167.32440616,0.00024658,2]
[374276601,1753263052408,-500.0,0.00024658,2]
[374276603,1753263052418,-500.0,0.00024658,2]
[374276605,1753263052427,-151.0,0.00024658,2]
[374276607,1753263052437,-500.0,0.00024658,2]
[374276609,1753263052446,-500.0,0.00024658,2]
[374276611,1753263052456,-220.16596609,0.00024658,2]
[374276613,1753263052465,-575.0,0.00024658,2]
[374276615,1753263052475,-1025.92947994,0.00024659,11]
[374276617,1753263052485,-195.283098,0.00024673,7]
[374276619,1753263052494,-151.0,0.00024673,7]
[374276621,1753263052504,-152.0,0.00024673,3]
[374276623,1753263052513,-152.0,0.00024673,3]
[374276625,1753263052522,-152.0,0.00024673,3]
[374276627,1753263052532,-152.0,0.00024673,3]
[374276629,1753263052541,-152.0,0.00024673,3]
[374276631,1753263052551,-152.0,0.00024673,3]
[374276633,1753263052560,-152.0,0.00024673,3]
[374276635,1753263052569,-152.0,0.00024673,3]
[374276637,1753263052578,-152.0,0.00024673,3]
[374276639,1753263052588,-152.0,0.00024673,3]
[374276641,1753263052597,-152.0,0.00024673,3]
[374276643,1753263052606,-152.0,0.00024673,3]
[374276645,1753263052617,-152.0,0.00024673,3]
[374276647,1753263052629,-152.0,0.00024673,3]
[374276649,1753263052639,-152.0,0.00024673,3]
[374276652,1753263052649,-152.0,0.00024673,3]
[374276654,1753263052659,-152.0,0.00024673,3]
[374276656,1753263052669,-152.0,0.00024673,3]
[374276658,1753263052679,-152.0,0.00024673,3]
[374276659,1753263052688,-152.0,0.00024673,3]
[374276661,1753263052701,-152.0,0.00024673,3]
[374276663,1753263052710,-152.0,0.00024673,3]
[374276665,1753263052720,-152.0,0.00024673,3]
[374276667,1753263052728,-152.0,0.00024673,3]
[374276669,1753263052737,-152.0,0.00024673,3]
[374276671,1753263052746,-152.0,0.00024673,3]
[374276673,1753263052755,-152.0,0.00024673,3]
[374276675,1753263052764,-152.0,0.00024673,3]
[374276677,1753263052773,-152.0,0.00024673,3]
[374276679,1753263052784,-152.0,0.00024673,3]
[374276681,1753263052793,-152.0,0.00024673,3]
[374276683,1753263052802,-152.0,0.00024673,3]
[374276685,1753263052812,-152.0,0.00024673,3]
[374276687,1753263052821,-152.0,0.00024673,3]
[374276690,1753263052830,-152.0,0.00024673,3]
[374276692,1753263052840,-152.0,0.00024673,3]
[374276693,1753263052849,-152.0,0.00024673,3]
[374276696,1753263052858,-152.0,0.00024673,3]
[374276697,1753263052867,-152.0,0.00024673,3]
[374276699,1753263052877,-152.0,0.00024673,3]
[374276701,1753263052886,-152.0,0.00024673,3]
[374276703,1753263052896,-152.0,0.00024673,3]
[374276705,1753263052905,-152.0,0.00024673,3]
[374276707,1753263052914,-152.0,0.00024673,3]
[374276709,1753263052923,-152.0,0.00024673,3]
[374276711,1753263052932,-152.0,0.00024673,3]
[374276713,1753263052941,-152.0,0.00024673,3]
[374276715,1753263052950,-152.0,0.00024673,3]
[374276717,1753263052959,-152.0,0.00024673,3]
[374276719,1753263052968,-227.47550414,0.00024673,3]
[374276721,1753263052977,-525.27,0.00024678,4]
[374276723,1753263052986,-150.018575,0.00024691,10]
[374276725,1753263052996,-150.018575,0.00024691,10]
[374276727,1753263053005,-3595.77637381,0.00024716,2]
[374276729,1753263053015,-150.018575,0.00024758,7]
[374276731,1753263053024,-525.27,0.00024778,7]
[374276733,1753263053033,-3595.77637381,0.00024795,2]
[374276735,1753263053043,-160.0,0.00024815,9]
[374276737,1753263053052,-26054.97967769,0.0002483,2]
[374276739,1753263053062,-1025.92947994,0.00024866,12]
[374276741,1753263053071,-3595.77637381,0.00024874,2]
[374276743,1753263053081,-525.27,0.00024878,7]
[374276745,1753263053091,-5000.0,0.00024891,30]
[374276747,1753263053101,-5000.0,0.00024891,30]
[374276749,1753263053111,-5000.0,0.00024891,30]
[374276751,1753263053120,-239.84119403,0.00024898,2]
[374276754,1753263053129,-200.0,0.00024899,2]
[374276755,1753263053139,-200.0,0.00024899,2]
[374276758,1753263053148,-163.92604,0.000249,7]
[374276759,1753263053157,-152.148199,0.000249,7]
[374276761,1753263053167,-163.92604,0.000249,7]
[374276763,1753263053177,-151.0,0.000249,7]
[374276766,1753263053186,-164.861367,0.000249,7]
[374276767,1753263053195,-164.861367,0.000249,7]
[374276770,1753263053206,-151.0,0.000249,7]
[374276771,1753263053215,-151.0,0.000249,7]
[374276774,1753263053225,-256.519314,0.000249,7]
[374276787,1753263053344,-151.0,0.000249,7]
[374276789,1753263053354,-151.0,0.000249,7]
[374276791,1753263053364,-151.0,0.000249,7]
[374276793,1753263053373,-151.0,0.000249,7]
[374276795,1753263053382,-151.0,0.000249,7]
[374276797,1753263053391,-151.0,0.000249,7]
[374276799,1753263053401,-265.705301,0.000249,7]
[374276801,1753263053410,-265.705301,0.000249,7]
[374276802,1753263053419,-264.910964,0.000249,7]
[374276805,1753263053429,-264.910964,0.000249,7]
[374276806,1753263053438,-312.187044,0.000249,7]
[374276808,1753263053447,-151.0,0.000249,7]
[374276810,1753263053460,-312.187044,0.000249,7]
[374276812,1753263053469,-151.0,0.000249,7]
[374276814,1753263053481,-151.0,0.000249,7]
[374276816,1753263053490,-199.875056,0.000249,7]
[374276818,1753263053500,-151.0,0.000249,7]
[374276820,1753263053509,-151.0,0.000249,7]
[374276823,1753263053520,-151.0,0.000249,7]
[374276824,1753263053529,-151.0,0.000249,7]
[374276827,1753263053538,-151.0,0.000249,7]
[374276828,1753263053547,-168.48543,0.000249,7]
[374276830,1753263053557,-168.48543,0.000249,7]
[374276833,1753263053566,-151.0,0.000249,7]
[374276835,1753263053575,-151.0,0.000249,7]
[374276837,1753263053585,-151.0,0.000249,7]
[374276839,1753263053594,-151.0,0.000249,7]
[374276841,1753263053603,-151.0,0.000249,7]
[374276843,1753263053613,-187.896896,0.000249,7]
[374276845,1753263053629,-187.896896,0.000249,7]
[374276847,1753263053638,-151.0,0.000249,7]
[374276849,1753263053648,-1070.03,0.000249,7]
[374276851,1753263053657,-151.0,0.000249,2]
[374276853,1753263053666,-457.16,0.000249,7]
[374276855,1753263053676,-408.768841,0.000249,7]
[374276857,1753263053685,-408.768841,0.000249,7]
[374276859,1753263053694,-151.0,0.000249,7]
[374276861,1753263053705,-581.179663,0.000249,7]
[374276863,1753263053714,-581.179663,0.000249,7]
[374276865,1753263053724,-151.0,0.000249,7]
[374276867,1753263053733,-151.0,0.000249,7]
[374276869,1753263053742,-151.0,0.000249,7]
[374276871,1753263053751,-151.0,0.000249,7]
[374276872,1753263053761,-151.0,0.000249,7]
[374276875,1753263053771,-305.729872,0.000249,7]
[374276877,1753263053781,-305.729872,0.000249,7]
[374276879,1753263053790,-151.0,0.000249,7]
[374276881,1753263053799,-151.0,0.000249,7]
[374276882,1753263053809,-270.494442,0.000249,7]
[374276885,1753263053819,-440.697139,0.000249,7]
[374276887,1753263053829,-440.697139,0.000249,7]
[374276888,1753263053838,-440.697139,0.000249,7]
[374276891,1753263053848,-440.697139,0.000249,7]
[374276892,1753263053858,-151.0,0.000249,7]
[374276894,1753263053866,-151.450814,0.000249,7]
[374276896,1753263053875,-151.217932,0.000249,7]
[374276898,1753263053884,-151.0,0.000249,7]
[374276900,1753263053893,-151.0,0.000249,7]
[374276902,1753263053903,-442.649344,0.000249,7]
[374276904,1753263053913,-442.649344,0.000249,7]
[374276906,1753263053922,-519.717273,0.000249,7]
[374276908,1753263053932,-165.955037,0.000249,7]
[374276910,1753263053941,-165.955037,0.000249,7]
[374276912,1753263053951,-165.955037,0.000249,7]
[374276914,1753263053961,-165.955037,0.000249,7]
[374276916,1753263053970,-157.380487,0.000249,7]
[374276918,1753263053979,-157.380487,0.000249,7]
[374276920,1753263053988,-157.380487,0.000249,7]
[374276922,1753263053997,-157.380487,0.000249,7]
[374276924,1753263054007,-181.36677,0.000249,7]
[374276926,1753263054016,-181.36677,0.000249,7]
[374276928,1753263054026,-186.716584,0.000249,7]
[374276930,1753263054035,-181.36677,0.000249,7]
[374276932,1753263054044,-181.36677,0.000249,7]
[374276934,1753263054058,-186.716584,0.000249,7]
[374276936,1753263054067,-186.716584,0.000249,7]
[374276938,1753263054076,-186.716584,0.000249,7]
[374276940,1753263054086,-151.0,0.000249,7]
[374276942,1753263054095,-151.0,0.000249,7]
[374276944,1753263054105,-151.0,0.000249,7]
[374276946,1753263054114,-151.0,0.000249,7]
[374276948,1753263054123,-151.0,0.000249,7]
[374276950,1753263054133,-151.0,0.000249,7]
[374276952,1753263054143,-544.329649,0.000249,7]
[374276954,1753263054153,-544.329649,0.000249,7]
[374276956,1753263054162,-544.329649,0.000249,7]
[374276959,1753263054172,-544.329649,0.000249,7]
[374276961,1753263054181,-180.05127002,0.000249,2]
[374276963,1753263054191,-152.750524,0.000249,7]
[374276965,1753263054201,-151.0,0.000249,7]
[374276967,1753263054210,-151.0,0.000249,7]
[374276968,1753263054220,-151.0,0.000249,7]
[374276970,1753263054230,-151.0,0.000249,7]
[374276972,1753263054239,-151.0,0.000249,7]
[374276974,1753263054249,-151.0,0.000249,7]
[374276977,1753263054258,-151.0,0.000249,7]
[374276979,1753263054268,-151.0,0.000249,7]
[374276981,1753263054278,-5878.34546,0.000249,7]
[374276983,1753263054287,-5878.34546,0.000249,7]
[374276984,1753263054296,-151.0,0.000249,7]
[374276987,1753263054305,-156.974998,0.000249,7]
[374276988,1753263054315,-151.0,0.000249,7]
[374276991,1753263054326,-5878.34546,0.000249,7]
[374276993,1753263054335,-5878.34546,0.000249,7]
[374276995,1753263054345,-1090.423843,0.000249,7]
[374276996,1753263054354,-1090.423843,0.000249,7]
[374276998,1753263054363,-1090.423843,0.000249,7]
[374277000,1753263054372,-1090.423843,0.000249,7]
[374277003,1753263054382,-151.0,0.000249,7]
[374277005,1753263054392,-151.0,0.000249,7]
[374277007,1753263054402,-501.166439,0.000249,7]
[374277009,1753263054412,-501.166439,0.000249,7]
[374277011,1753263054422,-501.166439,0.000249,7]
[374277013,1753263054432,-501.166439,0.000249,7]
[374277015,1753263054442,-350.117315,0.000249,7]
[374277017,1753263054453,-350.117315,0.000249,7]
[374277019,1753263054463,-350.117315,0.000249,7]
[374277021,1753263054476,-350.117315,0.000249,7]
[374277023,1753263054486,-151.0,0.000249,7]
[374277025,1753263054495,-151.0,0.000249,7]
[374277027,1753263054506,-2508.453282,0.000249,7]
[374277029,1753263054517,-2508.453282,0.000249,7]
[374277031,1753263054528,-2508.453282,0.000249,7]
[374277033,1753263054539,-2508.453282,0.000249,7]
[374277036,1753263054549,-151.0,0.000249,7]
[374277038,1753263054559,-151.0,0.000249,7]
[374277040,1753263054569,-957.765318,0.000249,7]
[374277042,1753263054579,-957.765318,0.000249,7]
[374277044,1753263054589,-957.765318,0.000249,7]
[374277046,1753263054598,-151.0,0.000249,7]
[374277048,1753263054607,-957.765318,0.000249,7]
[374277050,1753263054620,-151.0,0.000249,7]
[374277052,1753263054631,-151.0,0.000249,7]
[374277054,1753263054641,-151.0,0.000249,7]
[374277056,1753263054650,-151.0,0.000249,7]
[374277058,1753263054659,-151.0,0.000249,7]
[374277060,1753263054668,-413907.2641063,0.000249,2]
[374277269,1753263056678,-45454.8695777,0.000249,2]
[374277271,1753263056687,-217.916648,0.000249,7]
[374277273,1753263056698,-217.916648,0.000249,7]
[374277275,1753263056710,-217.916648,0.000249,7]
[374277277,1753263056719,-217.916648,0.000249,7]
[374277278,1753263056728,-151.0,0.000249,7]
[374277281,1753263056737,-2200.0,0.00024913,2]
[374277282,1753263056748,-500.639,0.00024913,2]
[374277284,1753263056757,-150.018575,0.00024914,10]
[374277286,1753263056766,-150.018575,0.00024914,10]
[374277288,1753263056775,-1329.22,0.00024928,2]
[374277290,1753263056785,-766.09,0.00024928,2]
[374277292,1753263056795,-150.018575,0.00024929,7]
[374277294,1753263056804,-466.593558,0.00024931,7]
[374277296,1753263056813,-466.593558,0.00024931,7]
[374277298,1753263056823,-1845.39,0.00024931,2]
[374277300,1753263056832,-620.0,0.00024931,2]
[374277302,1753263056842,-675.93,0.00024931,2]
[374277304,1753263056851,-1524.84,0.00024931,2]
[374277306,1753263056861,-797.63,0.00024931,2]
[374277308,1753263056870,-1493.61,0.00024931,2]
[374277310,1753263056879,-918.54,0.00024931,2]
[374277312,1753263056888,-1445.62,0.00024931,2]
[374277313,1753263056898,-464.88,0.00024931,2]
[374277316,1753263056908,-1423.3,0.00024931,2]
[374277318,1753263056918,-460.0,0.00024931,2]
[374277320,1753263056928,-2006.55,0.00024931,2]
[374277322,1753263056937,-1267.73,0.00024931,2]
[374277324,1753263056947,-1053.0,0.00024931,2]
[374277326,1753263056958,-500.0,0.00024932,2]
[374277327,1753263056967,-500.0,0.00024932,2]
[374277329,1753263056977,-246.04954172,0.00024932,2]
[374277331,1753263056986,-500.0,0.00024932,2]
[374277333,1753263056996,-607.67743392,0.00024932,2]
[374277335,1753263057005,-213.87480234,0.00024932,2]
[374277337,1753263057015,-575.0,0.00024932,2]
[374277339,1753263057025,-168.0,0.00024947,2]
[374277341,1753263057034,-500.03557464,0.00024948,2]
[374277343,1753263057043,-3106.8963823,0.0002495,2]
[374277345,1753263057054,-3595.77637381,0.00024953,2]
[374277348,1753263057064,-500.0,0.00024973,2]
[374277349,1753263057073,-168.0,0.00024973,2]
[374277351,1753263057082,-525.27,0.00024978,4]
[374277353,1753263057091,-1129.846935,0.0002498,5]
[374277355,1753263057101,-200.0,0.00024999,2]
[374277357,1753263057110,-2646.0,0.00025,10]
[374277359,1753263057119,-4952.63131142,0.00025,30]
[374277361,1753263057128,-2037.61767604,0.00025,14]
[374277363,1753263057137,-118166.42305347,0.00025,30]
[374277370,1753263057194,-295.425,0.00019451,2]
[374277372,1753263057206,-164.575,0.00019451,2]
[374277374,1753263057216,-360.27,0.00022386,2]
[374277376,1753263057225,-540.41,0.00022694,2]
[374277378,1753263057234,-3355.53,0.00023013,2]
[374277380,1753263057243,-900.68,0.00023208,2]
[374277382,1753263057252,-3355.53,0.00023287,2]
[374277383,1753263057262,-3355.53,0.00023561,2]
[374277385,1753263057272,-334.18730074,0.00024473,3]
[374277387,1753263057281,-152.0,0.00024473,3]
[374277389,1753263057290,-126360.22893926,0.00025,30]
[374277401,1753263057396,-460.0,0.00019725,2]
[374277403,1753263057407,-460.0,0.00019999,2]
[374277405,1753263057418,-460.0,0.00020273,2]
[374277407,1753263057427,-460.0,0.00020547,2]
[374277409,1753263057436,-460.0,0.00020821,2]
[374277411,1753263057446,-7377.0,0.00021085,10]
[374277413,1753263057456,-460.0,0.00021095,2]
[374277415,1753263057465,-454.72515431,0.00021369,2]
[374277417,1753263057477,-5.27484569,0.00021369,2]
[374277419,1753263057487,-460.0,0.00021643,2]
[374277421,1753263057496,-460.0,0.00021917,2]
[374277423,1753263057506,-460.0,0.00022191,2]
[374277425,1753263057515,-3355.53,0.00023835,2]
[374277427,1753263057525,-3355.53,0.00024109,2]
[374277429,1753263057534,-3355.53,0.00024383,2]
[374277431,1753263057543,-178.2325116,0.00024384,2]
[374277433,1753263057552,-153.0,0.00024658,2]
[374277435,1753263057561,-162343.28576271,0.00025,30]
[374277440,1753263057603,-460.0,0.0001945,2]
[374277442,1753263057613,-132.73,0.00024384,2]
[374277447,1753263057663,-460.0,0.00019724,2]
[374277449,1753263057673,-483.75,0.00022465,2]
[374277451,1753263057683,-444.8130988,0.00024384,2]
[374277453,1753263057693,-159.9205653,0.00024384,2]
[374277455,1753263057704,-152.0,0.00024473,3]
[374277457,1753263057713,-152.0,0.00024473,3]
[374277459,1753263057722,-3355.53,0.00024657,2]
[374277461,1753263057731,-3355.53,0.00024931,2]
[374277463,1753263057741,-354698.28012572,0.00025,30]
[374277465,1753263057751,-33632.28595076,0.00025,7]
[374277467,1753263057759,-4561.93032915,0.00025,2]
[374277469,1753263057769,-2619.3562146,0.00025,2]
[374277471,1753263057778,-207.70928344,0.00025,2]
[374277472,1753263057787,-10364.0,0.00025,2]
[374277474,1753263057797,-13941.55349223,0.00025,30]
[374277477,1753263057810,-23753.90728,0.00025,30]
[374277595,1753263059250,-56.01764658,0.00025,30]
[374277597,1753263059261,-684157.11757414,0.00025,30]
[374278587,1753263446329,-150.0,0.00016801,2]
[374278588,1753263446351,-231.0,0.00018328,2]
[374279156,1753263579551,-150.0,0.00018565,2]
[374279157,1753263579578,-302.78807257,0.000189,2]
[374279158,1753263579604,-10832.00123018,0.00019,2]
[374279159,1753263579630,-260.94857746,0.00019078,2]
[374279160,1753263579655,-302.78807257,0.00019089,2]
[374279161,1753263579682,-1148.0,0.00019177,2]
[374279162,1753263579708,-582.0,0.00019177,2]
[374279163,1753263579732,-300.0,0.00019177,2]
[374279164,1753263579757,-460.0,0.00019178,2]
[374279165,1753263579784,-460.0,0.00019178,2]
[374279166,1753263579807,-460.0,0.00019178,2]
[374279167,1753263579835,-460.0,0.00019178,2]
[374279168,1753263579859,-460.0,0.00019178,2]
[374279169,1753263579885,-512.84991917,0.00019178,2]
[374279170,1753263579909,-460.0,0.00019178,2]
[374279171,1753263579936,-734.54,0.00019178,2]
[374279172,1753263579963,-460.0,0.00019178,2]
[374279173,1753263579987,-460.0,0.00019178,2]
[374279174,1753263580013,-460.0,0.00019178,2]
[374279175,1753263580039,-460.0,0.00019178,2]
[374279176,1753263580070,-460.0,0.00019178,2]
[374279177,1753263580096,-460.0,0.00019178,2]
[374279178,1753263580121,-460.0,0.00019178,2]
[374279179,1753263580144,-460.0,0.00019178,2]
[374279180,1753263580167,-460.0,0.00019178,2]
[374279181,1753263580191,-460.0,0.00019178,2]
[374279182,1753263580216,-460.0,0.00019178,2]
[374279183,1753263580244,-460.0,0.00019178,2]
[374279184,1753263580273,-460.0,0.00019178,2]
[374279185,1753263580295,-460.0,0.00019178,2]
[374279186,1753263580318,-460.0,0.00019178,2]
[374279187,1753263580343,-460.0,0.00019178,2]
[374279188,1753263580367,-460.0,0.00019178,2]
[374279189,1753263580397,-460.0,0.00019178,2]
[374279190,1753263580421,-460.0,0.00019178,2]
[374279191,1753263580446,-330.17594042,0.00019178,2]
[374279192,1753263580470,-460.0,0.00019178,2]
[374279193,1753263580495,-460.0,0.00019178,2]
[374279194,1753263580517,-460.0,0.00019178,2]
[374279195,1753263580541,-460.0,0.00019178,2]
[374279196,1753263580565,-460.0,0.00019178,2]
[374279197,1753263580597,-504.44,0.00019178,2]